Cogmind - Beta 14 @@@ ROGUE MODE // 2024.10.01 @ 14:24:01 Player: Minty Result: Destroyed by Y-54 Guardian with Gatling Laser Performance ------------- Evolutions (4) 2000 Regions Visited (10) 2000 Robots Destroyed (148) 740 Value Destroyed (6204) 6204 Prototype IDs (30) 600 Alien Tech Used (0) 0 Bonus (1486) 1486 TOTAL SCORE: 13030 Bonus ------- High Alert Combat Kills 2108 Entered Garrisons 400 Aligned with FarCom 300 Friendly Fire -1322 Cogmind --------- Core Integrity 0/850 Matter 2/300 Energy 17/340 System Corruption 15% Temperature Cool (8) Movement Treading (157) Location -6/Factory Parts ------- > --- POWER (1) -------- Particle Reactor > --- PROPULSION (4) --- Armored Heavy Treads Advanced Heavy Treads > --- UTILITY (7) ------ ECM Suite Advanced Force Field Hacking Suite Advanced Corruption Screen PSU Rigger > --- WEAPON (3) ------- Hypervelocity Railgun > --- INVENTORY (5) ---- Trap Reconfigurator Firepult Fusion Bomb Launcher Peak State ------------ > --- POWER ------------ Particle Reactor > --- PROPULSION ------- Armored Heavy Treads Advanced Heavy Treads > --- UTILITY ---------- ECM Suite Advanced Force Field Hacking Suite Advanced Corruption Screen PSU Rigger > --- WEAPON ----------- Firepult Hypervelocity Railgun > --- INVENTORY -------- Particle Reactor Trap Reconfigurator Fusion Bomb Launcher [Rating: 98] Favorites ----------- Power Particle Reactor Engine Ion Engine Power Core Nuclear Core Reactor Particle Reactor Propulsion Combat Airjet Treads Improved Heavy Treads Leg Aluminum Leg Wheel Wheel Hover Unit Combat Airjet Flight Unit VTOL Module Utility Improved Light Armor Plating Device Improved Heat Sink Storage Medium Storage Unit Processor Improved Signal Interpreter Hackware Hacking Suite Protection Improved Light Armor Plating Weapon Mini Grenade Launcher Energy Gun Advanced Beam Rifle Energy Cannon Firepult Ballistic Gun Light Assault Rifle Ballistic Cannon Heavy Linear Accelerator Launcher Mini Grenade Launcher Build | -11 -10 -10 -10 -9 -8 -7 -7 -6 -6 -6 ------- Run | Yrd Mat Min Exi Min Mat Fac Gar Fac Gar Fac Slots Evolved 8 | . . . . . 4 2 . 2 . . Power . | . . . . . . . . . . . Propulsion 2 | . . . . . 1 1 . . . . Utility 5 | . . . . . 3 1 . 1 . . Weapon 1 | . . . . . . . . 1 . . Parts Attached 186 | . 6 18 3 1 25 48 33 19 28 5 Power 21 | . 1 4 . . 1 6 2 2 5 . Engine 11 | . 1 4 . . . 3 . . 3 . Core 5 | . . . . . 1 3 . 1 . . Reactor 5 | . . . . . . . 2 1 2 . Propulsion 23 | . 3 3 1 . 1 2 7 . 6 . Treads 9 | . . . . . . . 7 . 2 . Leg 1 | . . . . . . . . . 1 . Wheel 4 | . 3 1 . . . . . . . . Hover 6 | . . 2 1 . 1 2 . . . . Flight 3 | . . . . . . . . . 3 . Utility 76 | . 1 1 1 . 17 29 14 4 6 3 Device 38 | . . . . . 11 12 6 3 4 2 Storage 3 | . . . . . 1 1 . 1 . . Processor 5 | . 1 . . . 1 2 . . 1 . Hackware 3 | . . . . . 1 1 . . . 1 Protection 27 | . . 1 1 . 3 13 8 . 1 . Artifact . | . . . . . . . . . . . Weapon 66 | . 1 10 1 1 6 11 10 13 11 2 Energy Gun 19 | . . . . . 4 3 4 6 2 . Energy Cannon 8 | . . . . . . 1 . 1 5 1 Ballistic Gun 11 | . 1 4 . . . . 3 2 1 . Ballistic Cannon 3 | . . . . . . . . . 3 . Launcher 25 | . . 6 1 1 2 7 3 4 . 1 Special Weapon . | . . . . . . . . . . . Impact Weapon . | . . . . . . . . . . . Slashing Weapon . | . . . . . . . . . . . Piercing Weapon . | . . . . . . . . . . . Special Melee Weapon . | . . . . . . . . . . . Unidentified Prototypes 7 | . . 1 . . 2 3 . 1 . . Corrupted Parts 7 | . . . . . . 2 4 1 . . System Corruption 60 | . . . . . . 11 39 10 . . Parts Lost 38 | . 1 3 . . 1 8 7 8 10 . Power 5 | . . 1 . . . . . 1 3 . Propulsion 9 | . 1 1 . . . 1 3 . 3 . Utility 16 | . . . . . 1 5 2 4 4 . Weapon 8 | . . 1 . . . 2 2 3 . . Highest Loss Streak 4 | . 1 2 . . 1 2 3 4 4 . To Critical Strikes . | . . . . . . . . . . . Average Slot Usage (%) 79 | . 87 97 100 100 98 85 73 73 28 59 Engine 4 | . 14 13 14 14 . 3 . . 1 . Core 1 | . . . . . 8 3 . 2 . . Reactor 1 | . . . . . . . 6 3 1 6 Treads 5 | . . . . . . . 14 13 8 13 Wheel 1 | . 5 10 . . . . . . . . Hover 12 | . . 16 28 28 27 23 1 . . . Device 9 | . . . . . 16 16 13 6 8 19 Storage 8 | . 14 14 14 14 9 7 7 8 2 . Processor 2 | . 4 6 . . . 3 2 . . 6 Protection 10 | . . 8 14 14 14 10 15 22 . . Energy Gun 3 | . . . . . 16 5 1 9 . . Ballistic Gun 4 | . 28 12 . . . . 4 3 . 6 Launcher 7 | . . 16 28 28 1 8 3 1 . . Peak Build Rating 98 | . 10 23 23 24 47 60 74 90 94 98 Average Rating 44 | . 7 16 21 23 41 47 58 78 45 80 On Entrance 34 | 6 6 9 21 23 24 44 47 70 51 76 Naked Turns 64 | . . . . . . . . . 64 . Heaviest Build 112 | 10 12 16 17 17 34 43 97 112 48 45 Greatest Support 150 | 20 20 24 24 24 36 52 150 150 130 130 Greatest Overweight (x) 7 | . 1 4 . . . 1 5 1 7 . Average Overweight (x) . | . . . . . . . . . . . Largest Inventory Capacity 10 | . 8 8 8 8 10 10 10 10 10 5 Average Capacity 8 | . 8 8 8 8 8 10 10 10 7 5 Most Carried 10 | . 8 8 8 8 10 10 10 10 10 5 Average Carried 8 | . 7 7 7 8 8 9 9 9 6 4 Final Capacity 10 | 8 8 8 8 8 10 10 10 10 5 5 Final Carried 10 | 6 7 8 8 8 10 10 10 10 5 4 Class Distribution -------------------- 69% | Scavenger-Mutant 21% | Mutant 4% | Scavenger-Scout 3% | Scavenger-Bomber Dominant Class ---------------- Mutant | -10/Materials Scavenger-Mutant | -10/Mines Scavenger-Mutant | -10/Exiles Scavenger-Mutant | -9/Mines Scavenger-Mutant | -8/Materials Scavenger-Mutant | -7/Factory Scavenger-Mutant | -7/Garrison Scavenger-Bomber | -6/Factory Mutant | -6/Garrison Mutant | -6/Factory Resources | -11 -10 -10 -10 -9 -8 -7 -7 -6 -6 -6 ----------- Run | Yrd Mat Min Exi Min Mat Fac Gar Fac Gar Fac Matter Collected 3801 | 188 99 493 . 82 303 821 938 207 643 27 Remotely . | . . . . . . . . . . . Salvage Created 7111 | . 255 322 . 23 780 1786 2256 768 805 116 Parts 273 | . 17 16 . 5 36 67 77 31 20 4 Haulers Intercepted 3 | . . . . . 1 2 . . . . Recyclers Shooed 8 | . 1 2 . . . 4 . 1 . . Parts Field Recycled . | . . . . . . . . . . . Retrieved Matter . | . . . . . . . . . . . Parts Self-Destructed . | . . . . . . . . . . . Prevented . | . . . . . . . . . . . Kills | -11 -10 -10 -10 -9 -8 -7 -7 -6 -6 -6 ------- Run | Yrd Mat Min Exi Min Mat Fac Gar Fac Gar Fac Combat Hostiles Destroyed 127 | . 6 20 . 3 15 25 22 17 16 3 Melee 1 | . . . . . . . . 1 . . Guns 38 | . 6 3 . . 12 2 4 10 . 1 Cannons 9 | . . . . . . . . 1 8 . AOE 62 | . . 17 . 3 2 21 11 3 3 2 Classes Destroyed 19 | . 5 4 . . 4 2 2 1 1 . Worker 9 | . . 2 . . . 6 . 1 . . Builder 1 | . . . . . . . . 1 . . Tunneler 3 | . . 2 . . . . . . . 1 Hauler 3 | . . . . . 1 2 . . . . Recycler 10 | . 1 . . . . 9 . . . . Mechanic 3 | . 1 . . . 1 1 . . . . Operator 2 | . 1 . . . . . . . . 1 Watcher 4 | . . . . . 2 2 . . . . Swarmer 27 | . 3 3 . 3 2 4 . 9 3 . Cutter 2 | . . . . . . . 2 . . . Grunt 41 | . 3 . . . 5 11 8 8 4 2 Brawler 4 | . . . . . 1 1 . . 2 . Duelist 6 | . . . . . . 1 4 . 1 . Sentry 16 | . . 2 . . 4 3 6 . 1 . Hunter 13 | . . . . . 3 4 1 . 4 1 Programmer 1 | . . . . . . 1 . . . . Heavy 1 | . . . . . . . 1 . . . Behemoth 1 | . . . . . . . . . 1 . Assembled 15 | . . 15 . . . . . . . . Best Kill Streak 15 | . 6 15 . 3 4 7 9 5 5 2 Combat Bots Only 15 | . 6 15 . 3 3 5 9 4 5 2 Max Kills in Single Turn 5 | . 1 5 . 1 2 4 2 2 2 1 Gunslinging . | . . . . . . . . . . . Exploded 5 | . . 5 . 1 2 4 2 2 1 1 Melee 1 | . . . . . . . . 1 . . Uniques/NPCs Destroyed 1 | . . 1 . . . . . . . . YI-UF0 (-10/Mines) Combat | -11 -10 -10 -10 -9 -8 -7 -7 -6 -6 -6 -------- Run | Yrd Mat Min Exi Min Mat Fac Gar Fac Gar Fac Hostile Shots Fired 1101 | . 31 45 . 2 96 267 274 174 152 60 Missed 440 | . 7 13 . 1 45 118 138 55 40 23 Damage Taken 9664 | . 246 514 . 34 772 1844 1745 1994 2077 438 Core 1758 | . 69 154 . . 125 264 290 95 716 45 Absorbed by Shields 250 | . . . . . . . . . . 250 Reduced by Siege Mode 132 | . . . . . . . . . 132 . Ignored by Resistances 296 | . . . . . . 48 27 221 . . Regen/Repaired (Parts) 150 | . . . . . 65 85 . . . . Core Remaining (%) 51 | 100 . . . 10 77 . 20 . . . Volleys Fired 396 | . 21 62 . 3 58 56 91 36 41 28 Largest 3 | . 2 2 . 2 2 2 2 3 1 2 Hottest 290 | . 40 70 . 60 122 250 110 250 250 290 Shots Fired 603 | . 42 115 . 6 114 98 98 49 45 36 Gun 421 | . 42 102 . . 110 49 40 39 10 29 Cannon 40 | . . . . . . 2 . 2 35 1 Launcher 142 | . . 13 . 6 4 47 58 8 . 6 Special . | . . . . . . . . . . . Kinetic 233 | . 42 102 . . . . 32 4 24 29 Thermal 164 | . . . . . 110 25 . 7 21 1 Explosive 66 | . . 13 . 6 4 36 1 . . 6 Electromagnetic 140 | . . . . . . 37 65 38 . . Robot Hit Streak 17 | . 7 13 . . 11 15 9 5 17 6 Robot Miss Streak 9 | . 2 6 . . 3 5 6 5 9 5 Penetration Max . | . . . . . . . . . . . Secondary Targets 6 | . 3 . . . 2 . . 1 . . Max Gunslinging Chain 1 | . 1 . . . 1 . . 1 . . Autonomous 7 | . . . . . . . . . 7 . Shots Hit Robots 343 | . 29 74 . . 76 52 42 25 25 20 Core Hits 362 | . 16 65 . 3 29 99 55 44 35 16 Critical Kills 2 | . . . . . . . . . . 2 Critical Parts Destroyed 6 | . . 1 . . . . . . . 5 Critical Strikes 25 | . . 1 . . 11 3 . . 3 7 Burn 14 | . . . . . 11 3 . . . . Destroy 8 | . . 1 . . . . . . . 7 Blast 3 | . . . . . . . . . 3 . Melee Attacks . | . . . . . . . . . . . Impact . | . . . . . . . . . . . Slashing . | . . . . . . . . . . . Piercing . | . . . . . . . . . . . Sneak Attacks . | . . . . . . . . . . . Combat Hostiles . | . . . . . . . . . . . Follow-up Attacks . | . . . . . . . . . . . Damage Inflicted 16159 | . 258 1812 . 109 1882 3879 3321 1791 2155 952 Guns 4335 | . 258 519 . . 1522 584 470 624 199 159 Cannons 1279 | . . . . . . 63 . 118 1081 17 Explosions 10351 | . . 1261 . 109 360 3232 2832 993 824 740 Melee . | . . . . . . . . . . . Ramming 194 | . . 32 . . . . 19 56 51 36 Kinetic 2300 | . 258 519 . . . . 440 51 873 159 Thermal 4498 | . . . . . 1522 750 143 764 1231 88 Explosive 4691 | . . 1261 . 109 360 2240 52 . . 669 Electromagnetic 4476 | . . . . . . 889 2667 920 . . Impact . | . . . . . . . . . . . Slashing . | . . . . . . . . . . . Piercing . | . . . . . . . . . . . Highest Corruption 54 | . . . . . . 12 54 11 15 15 Average Corruption 15 | . . . . . . 1 30 10 12 15 Corruption Purged . | . . . . . . . . . . . Corruption Blocked . | . . . . . . . . . . . Effects 146 | . . . . . . 13 66 20 26 21 Message Errors 35 | . . . . . . 4 15 5 8 3 Matter Fused 33 | . . . . . . 4 16 5 6 2 Heat Flow Errors 18 | . . . . . . . 8 4 2 4 Energy Discharges 20 | . . . . . . 1 11 1 1 6 Data Loss (minor) 18 | . . . . . . 2 6 3 6 1 Data Loss (major) 7 | . . . . . . 2 2 1 . 2 Misfires 4 | . . . . . . . 2 . 1 1 Alerts 5 | . . . . . . . 1 1 2 1 Misdirections 1 | . . . . . . . . . . 1 Weapon Failures 5 | . . . . . . . 5 . . . Overload Shots . | . . . . . . . . . . . Overflow Damage 90 | . . 39 . . . 15 . 18 18 . Projectiles 16 | . . . . . . . . . 16 . Explosions 74 | . . 39 . . . 15 . 18 2 . Melee . | . . . . . . . . . . . Knockbacks 3 | . . . . . . . 1 . 2 . Impact 1 | . . . . . . . 1 . . . Kinetic 1 | . . . . . . . . . 1 . Secondary 1 | . . . . . . . . . 1 . Self-Inflicted Damage 1227 | . . 58 . 29 . 251 350 137 170 232 Shots 44 | . . 2 . 1 . 8 15 6 8 4 Rammed 21 | . . 7 . . . . 1 5 . 8 Targets Rammed 22 | . . 7 . . . . 1 6 . 8 Kicked . | . . . . . . . . . . . Crushed 1 | . . . . . . . . 1 . . Highest Temperature 658 | . 18 212 . 18 166 378 315 586 658 214 Average Temperature 120 | . 11 53 . 9 54 64 78 223 191 68 Received Heat Transfer 2108 | . 96 155 . . 297 351 327 639 171 72 Effects 29 | . . . . . . . 1 21 7 . Shutdowns 3 | . . . . . . . . 1 2 . Energy Bleed 4 | . . . . . . . . 3 1 . Interference 7 | . . . . . . . . 6 1 . Matter Decay 1 | . . . . . . . . 1 . . Short Circuit 4 | . . . . . . . . 3 1 . Damage (minor) 4 | . . . . . . . 1 3 . . Damage (major) 5 | . . . . . . . . 4 1 . Damage (core) 1 | . . . . . . . . . 1 . Siege Activations 1 | . . . . . . . . . 1 . Total Turns 16 | . . . . . . . . . 16 . Longest Duration 16 | . . . . . . . . . 16 . Robots Corrupted 14 | . . . . . . 1 13 . . . Combat Hostiles 7 | . . . . . . . 7 . . . Parts Fried 42 | . . . . . . 7 33 2 . . Impact Corruptions . | . . . . . . . . . . . Robots Melted 10 | . . . . . 1 2 . 2 5 . Combat Hostiles 10 | . . . . . 1 2 . 2 5 . Parts Melted 39 | . . . . . 7 6 1 5 17 3 Heat Transferred 14172 | . . . . . 3589 1888 200 2632 5463 400 Parts Sabotaged . | . . . . . . . . . . . Parts Stolen . | . . . . . . . . . . . Parts Stripped . | . . . . . . . . . . . Power Chain Reactions 8 | . . . . . . 2 4 2 . . Alert | -11 -10 -10 -10 -9 -8 -7 -7 -6 -6 -6 ------- Run | Yrd Mat Min Exi Min Mat Fac Gar Fac Gar Fac Peak Influence 1713 | . 190 314 . 109 469 1160 1713 1413 1321 999 Initial 898 | . . 73 . . . 184 746 898 876 693 Average 645 | . 58 131 . 78 235 552 1186 1111 1122 847 Maximum Alert Level 5 | . . 1 . . 2 4 5 4 4 3 Low Security (%) 28 | . 100 86 . 100 32 3 . . . . Level 1 15 | . . 13 . . 57 38 . . . . Level 2 5 | . . . . . 10 22 . . . . Level 3 29 | . . . . . . 27 49 48 39 99 Level 4 20 | . . . . . . 8 45 51 60 . Level 5 . | . . . . . . . 4 . . . High Security . | . . . . . . . . . . . Max Security . | . . . . . . . . . . . Squads Dispatched 26 | . 2 . . . 3 7 . 10 . 4 Investigation 12 | . 1 . . . 3 3 . 3 . 2 Extermination 2 | . . . . . . 1 . . . 1 Reinforcement 4 | . 1 . . . . . . 2 . 1 Assault 3 | . . . . . . 2 . 1 . . Garrison 5 | . . . . . . 1 . 4 . . Intercept . | . . . . . . . . . . . Searches Triggered . | . . . . . . . . . . . Construction Impeded 2 | . . . . . . . . 2 . . Haulers Reinforced . | . . . . . . . . . . . Active Scanning Responses . | . . . . . . . . . . . Cargo Convoy Interrupts . | . . . . . . . . . . . Stealth | -11 -10 -10 -10 -9 -8 -7 -7 -6 -6 -6 --------- Run | Yrd Mat Min Exi Min Mat Fac Gar Fac Gar Fac Distress Signals 8 | . . 1 . . 5 2 . . . . Communications Jammed . | . . . . . . . . . . . Distress Signals . | . . . . . . . . . . . Times Spotted 179 | . 12 26 . 2 27 34 24 32 17 5 Peak Tracking Total 17 | . 5 17 . 1 6 6 5 8 6 2 Tactical Retreats 8 | . . 1 . . 3 1 2 1 . . Traps | -11 -10 -10 -10 -9 -8 -7 -7 -6 -6 -6 ------- Run | Yrd Mat Min Exi Min Mat Fac Gar Fac Gar Fac Traps Triggered 5 | . . . . . . 1 3 . 1 . Indirectly 2 | . . . . . . 1 1 . . . Trap Hack Attempts . | . . . . . . . . . . . Triggered . | . . . . . . . . . . . Disarmed . | . . . . . . . . . . . Reprogrammed . | . . . . . . . . . . . Reused 6 | . . . . . . 3 3 . . . Traps Reconfigurated 25 | . . . . . . 7 12 . 4 2 Traps Extracted . | . . . . . . . . . . . Installed . | . . . . . . . . . . . Triggered 6 | . . . . . . 3 3 . . . Objects Rigged 14 | . . . . . . 8 5 . . 1 Exploded 6 | . . . . . . 2 3 . . 1 Machines | -11 -10 -10 -10 -9 -8 -7 -7 -6 -6 -6 ---------- Run | Yrd Mat Min Exi Min Mat Fac Gar Fac Gar Fac Machines Disabled 51 | . . 13 . . 5 19 4 2 2 6 Max in Single Turn 12 | . . 12 . . 3 5 1 1 1 4 Garrison Access 2 | . . . . . . 1 . 1 . . Garrison Relay 2 | . . . . . . . 2 . . . Phase Generator 1 | . . . . . . . 1 . . . Machines Repaired . | . . . . . . . . . . . Machines Dismantled . | . . . . . . . . . . . Machines Sabotaged . | . . . . . . . . . . . Overloaded Fab Kills . | . . . . . . . . . . . Hacking | -11 -10 -10 -10 -9 -8 -7 -7 -6 -6 -6 --------- Run | Yrd Mat Min Exi Min Mat Fac Gar Fac Gar Fac Machines Accessed 28 | . 1 . 2 . 6 9 1 4 3 2 Terminals 14 | . 1 . . . 4 3 1 1 3 1 Fabricators . | . . . . . . . . . . . Repair Stations 5 | . . . . . 2 2 . . . 1 Recycling Units 2 | . . . . . . 2 . . . . Scanalyzers . | . . . . . . . . . . . Garrison Access 5 | . . . . . . 2 . 3 . . Total Hacks 76 | . 3 . 2 . 20 26 1 11 9 4 Successful 26 | . . . 2 . 13 7 1 1 2 . Failed 50 | . 3 . . . 7 19 . 10 7 4 Catastrophic 12 | . 2 . . . . 4 . 2 2 2 Database Lockouts . | . . . . . . . . . . . Manual 24 | . . . 1 . 17 . . . 2 4 Terminals 40 | . 3 . . . 18 6 1 1 9 2 Fabricators . | . . . . . . . . . . . Repair Stations 9 | . . . . . 2 5 . . . 2 Recycling Units 8 | . . . . . . 8 . . . . Scanalyzers . | . . . . . . . . . . . Garrison Access 17 | . . . . . . 7 . 10 . . Terminal Hacks 16 | . . . 2 . 10 1 1 . 2 . Record 2 | . . . 1 . 1 . . . . . Robot Analysis 3 | . . . . . 2 1 . . . . Open Door 1 | . . . . . . . . . 1 . Level Access Points 1 | . . . . . 1 . . . . . Branch Access Points 2 | . . . . . 2 . . . . . Alert Level 3 | . . . . . 3 . . . . . Unreport Threat 1 | . . . . . 1 . . . . . Garrison Registry 1 | . . . . . . . . . 1 . Patrol Navigation 1 | . . . . . . . 1 . . . Derelict Proto ID Bank 1 | . . . 1 . . . . . . . Fabricator Hacks . | . . . . . . . . . . . Repair Station Hacks 2 | . . . . . . 2 . . . . Scan Component 1 | . . . . . . 1 . . . . Repair 1 | . . . . . . 1 . . . . Recycling Unit Hacks 2 | . . . . . . 2 . . . . Report Inventory 2 | . . . . . . 2 . . . . Scanalyzer . | . . . . . . . . . . . Garrison Access Hacks 3 | . . . . . . 2 . 1 . . Unlock Access 2 | . . . . . . 1 . 1 . . Seal Access 1 | . . . . . . 1 . . . . Unauthorized Hacks 3 | . . . . . 3 . . . . . Terminals 1 | . . . . . 1 . . . . . Botnet 1 | . . . . . 1 . . . . . Fabricators . | . . . . . . . . . . . Repair Stations 2 | . . . . . 2 . . . . . Patch 2 | . . . . . 2 . . . . . Recycling Units . | . . . . . . . . . . . Scanalyzers . | . . . . . . . . . . . Garrison Access . | . . . . . . . . . . . Data Cores Recovered . | . . . . . . . . . . . Used . | . . . . . . . . . . . Hacking Detections 24 | . 1 . . . 4 9 1 4 3 2 Full Trace Events 13 | . 1 . . . 2 3 . 3 2 2 Feedback Events 1 | . . . . . . 1 . . . . Corruption 1 | . . . . . . 1 . . . . Feedback Blocked . | . . . . . . . . . . . Robot Schematics Acquired . | . . . . . . . . . . . Robots Built . | . . . . . . . . . . . Authchips . | . . . . . . . . . . . Time . | . . . . . . . . . . . Total Robot Build Rating . | . . . . . . . . . . . Part Schematics Acquired . | . . . . . . . . . . . Parts Built . | . . . . . . . . . . . Authchips . | . . . . . . . . . . . Time . | . . . . . . . . . . . Total Part Build Rating . | . . . . . . . . . . . Parts Repaired 1 | . . . . . . 1 . . . . Time 50 | . . . . . . 50 . . . . Parts Recycled . | . . . . . . . . . . . Recycled Matter . | . . . . . . . . . . . Retrieved Matter . | . . . . . . . . . . . Retrieved Components . | . . . . . . . . . . . Parts Scanalyzed . | . . . . . . . . . . . Part Schematics Acquired . | . . . . . . . . . . . Parts Damaged . | . . . . . . . . . . . Bothacking | -11 -10 -10 -10 -9 -8 -7 -7 -6 -6 -6 ------------ Run | Yrd Mat Min Exi Min Mat Fac Gar Fac Gar Fac Used RIF Installer . | . . . . . . . . . . . Robots Hacked . | . . . . . . . . . . . Non-combat . | . . . . . . . . . . . Combat . | . . . . . . . . . . . Robot Hacks Applied . | . . . . . . . . . . . Relay Couplers Released 8 | . . . . . . . 7 1 . . Machine Destruction 8 | . . . . . . . 7 1 . . Fabnet Peak Effective % . | . . . . . . . . . . . Robots Rewired . | . . . . . . . . . . . Allies Hacked . | . . . . . . . . . . . Hacks Repelled . | . . . . . . . . . . . Allies | -11 -10 -10 -10 -9 -8 -7 -7 -6 -6 -6 -------- Run | Yrd Mat Min Exi Min Mat Fac Gar Fac Gar Fac Total Allies 5 | . . 3 . 1 . . . . 1 . Largest Group 4 | . . 3 3 4 1 . . . 1 . Highest-Rated Group 71 | . . 40 40 71 31 . . . 38 . Highest-Rated Ally 38 | . . 16 16 31 31 . . . 38 . Total Orders . | . . . . . . . . . . . Ally Attacks . | . . . . . . . . . . . Total Damage . | . . . . . . . . . . . Kills . | . . . . . . . . . . . Allies Corrupted . | . . . . . . . . . . . Allies Melted . | . . . . . . . . . . . Intel | -11 -10 -10 -10 -9 -8 -7 -7 -6 -6 -6 ------- Run | Yrd Mat Min Exi Min Mat Fac Gar Fac Gar Fac Robot Analysis Total 3 | . . . . . 2 1 . . . . Derelict Logs Recovered 4 | . . 3 . 1 . . . . . . Drone Launches . | . . . . . . . . . . . Drone Recoveries . | . . . . . . . . . . . Exploration | -11 -10 -10 -10 -9 -8 -7 -7 -6 -6 -6 ------------- Run | Yrd Mat Min Exi Min Mat Fac Gar Fac Gar Fac Turns Passed 6845 | . 222 1048 279 475 680 1213 1237 507 672 512 Spaces Moved 4979 | 1 140 952 303 293 585 1196 635 210 396 268 Core 148 | . . 3 . . . . 6 . 139 . Treads 1206 | . . . . . . . 526 210 202 268 Legs 119 | 1 108 . . . . . . . 10 . Wheels 341 | . 32 309 . . . . . . . . Hover 3120 | . . 640 303 293 585 1196 103 . . . Flight 45 | . . . . . . . . . 45 . Fastest Speed 29 | 120 80 77 77 77 74 65 74 160 29 157 Average Speed 96 | 120 111 79 77 77 74 72 146 168 109 157 Slowest Speed 400 | 120 120 250 77 77 74 144 300 240 400 157 Overloaded Moves . | . . . . . . . . . . . Propulsion Burnouts . | . . . . . . . . . . . Robots Hopped . | . . . . . . . . . . . Cave-ins Triggered . | . . . . . . . . . . . Exploration Rate (%) 42 | 2 37 98 61 65 44 30 66 7 52 10 Regions Visited 10 Branch Regions 3 Pre-discovered Areas 2 | . . 1 1 . . . . . . . Known Exits Taken 4 | . . . . 1 1 1 . 1 . . Unknown Exits Taken 4 | 1 1 1 1 . . . . . . . Scrap Searched 3 | . . 1 . 2 . . . . . . Spaces Dug . | . . . . . . . . . . . Terrain Destroyed 652 | . . 148 . 70 33 169 115 4 10 103 Melee . | . . . . . . . . . . . Projectile 17 | . . . . . . . 8 . 9 . AOE 635 | . . 148 . 70 33 169 107 4 1 103 Terrain Rammed 1 | . . . . . . . . . 1 . Walls Destroyed 1 | . . . . . . . . . 1 . Machines Disabled . | . . . . . . . . . . . Actions | -11 -10 -10 -10 -9 -8 -7 -7 -6 -6 -6 --------- Run | Yrd Mat Min Exi Min Mat Fac Gar Fac Gar Fac Total 6413 | . 171 1148 349 535 719 1439 838 308 584 322 Wait 607 | . . 87 37 239 29 88 32 16 73 6 Move 4970 | . 139 951 302 292 584 1196 633 210 395 268 Hop . | . . . . . . . . . . . Pick Up 60 | . 2 10 3 . 8 16 6 5 9 1 Fast Attach 61 | . 2 4 . . 3 9 18 6 17 2 Attach 52 | . 2 5 1 . 6 13 5 6 11 3 Detach 33 | . . 1 . . 4 8 5 4 8 3 Swap 73 | . 2 9 2 1 16 26 10 7 . . Drop 89 | . 3 12 4 . 11 19 18 6 14 2 Fire 396 | . 21 62 . 3 58 56 91 36 41 28 Melee . | . . . . . . . . . . . Ram 8 | . . 7 . . . . . . 1 . Kick . | . . . . . . . . . . . Crush 15 | . . . . . . . 1 6 . 8 Escape Stasis 29 | . . . . . . . 14 . 15 . Rewire 6 | . . . . . . . . 6 . . Trap 14 | . . . . . . 8 5 . . 1 Miscellaneous . | . . . . . . . . . . . Route ------- -11/Scrapyard -10/Materials -10/Mines (discovered 4 exits: [*Mat x2] / *Exi / Sub) -10/Exiles -9/Mines (discovered 2 exits: *Mat x2) -8/Materials (discovered 3 exits: *Fac x3) -7/Factory -7/Garrison (discovered 3 exits: *Fac x3) -6/Factory -6/Garrison (discovered 3 exits: *Fac x3) -6/Factory History --------- Turn | Location | Event 1 | -11/Scrapyard | Discovered new exit (range 0) 1 | -11/Scrapyard | Entered Materials 219 | -10/Materials | Discovered new exit (range 6) 223 | -10/Materials | Entered Mines 240 | -10/Mines | YI-UF0 nonchalantly dropped a Grenade Launcher on the ground 312 | -10/Mines | Build established: Mutant 331 | -10/Mines | Murdered YI-UF0 342 | -10/Mines | Found Prototype Launcher 376 | -10/Mines | Identified YI-UF0's Doublenader 411 | -10/Mines | Core integrity fell below 50% 434 | -10/Mines | Joined a pair of Derelicts in attacking an 0b10 outpost 444 | -10/Mines | Learned Materials stockpile data 478 | -10/Mines | Identified exit to Subcaves 481 | -10/Mines | Found DCF Scrap (11 items) 550 | -10/Mines | Learned location of Storage (-9) 603 | -10/Mines | Assembled infested the area 621 | -10/Mines | Core integrity fell below 20% 640 | -10/Mines | Met 8R-AWN 652 | -10/Mines | Destroyed 15 combat bots 728 | -10/Mines | Discovered new exit (range 14) 902 | -10/Mines | Build established: Scavenger-Mutant 1200 | -10/Mines | Found a hidden stash of uninstalled traps 1239 | -10/Mines | Discovered new exit (range 9) 1246 | -10/Mines | Assisted by bots powering up and referring to "LRC-V3" 1254 | -10/Mines | Discovered new exit (range 5) 1271 | -10/Mines | Entered Exiles 1271 | -10/Exiles | Accompanied by 3 allies 1290 | -10/Exiles | Welcomed by 8R-AWN 1304 | -10/Exiles | Met EX-HEX 1340 | -10/Exiles | Learned about 8R-AWN's background 1392 | -10/Exiles | Met EX-BIN 1400 | -10/Exiles | Aligned with FarCom system 1401 | -10/Exiles | Given EX-Vault access code 1419 | -10/Exiles | Opened EX-Vault 1427 | -10/Exiles | Found PSU Rigger 1429 | -10/Exiles | Found Firepult 1434 | -10/Exiles | Found Trap Reconfigurator 1456 | -10/Exiles | Warned to stay clear of 0b10 Research branches 1478 | -10/Exiles | Met EX-DEC 1482 | -10/Exiles | Learned location of Zion (-6) 1507 | -10/Exiles | Discovered new exit (range 10) 1550 | -10/Exiles | Stole three prototypes: Trap Reconfigurator, PSU Rigger, Firepult 1550 | -10/Exiles | Entered Mines 1550 | -9/Mines | Accompanied by 3 allies 1569 | -9/Mines | Met a Derelict bent on vengeance 1633 | -9/Mines | Discovered new exit (range 13) 1735 | -9/Mines | Identified exit to Materials 1804 | -9/Mines | Received a Mining Laser from a helpful Derelict 2025 | -9/Mines | Entered Materials 2025 | -8/Materials | Accompanied by 1 ally 2025 | -8/Materials | Evolved 4 slots: Propulsion x1, Utility x3 2229 | -8/Materials | Identified exit to Factory 2705 | -8/Materials | Entered Factory 2705 | -7/Factory | Evolved 2 slots: Propulsion x1, Utility x1 2707 | -7/Factory | FarCom data flow suspended 2864 | -7/Factory | Repaired Cmb. Airjet 3719 | -7/Factory | Garrison activated, responded to threat 3834 | -7/Factory | System corruption reached 10% 3905 | -7/Factory | First assault squad dispatched 3918 | -7/Factory | Identified exit to Garrison 3918 | -7/Factory | Entered Garrison 3986 | -7/Garrison | Triggered checkpoint 3988 | -7/Garrison | Core integrity fell below 50% 3993 | -7/Garrison | Heavy support dispatched to Factory 4024 | -7/Garrison | Lost 3 parts (2n1w) 4131 | -7/Garrison | Heavy support dispatched to Factory 4154 | -7/Garrison | Triggered checkpoint 4231 | -7/Garrison | Discovered new exit (range 10) 4311 | -7/Garrison | System corruption reached 30% 4328 | -7/Garrison | Triggered checkpoint 4419 | -7/Garrison | Garrison Relay disabled 4466 | -7/Garrison | Attempted to access garrison exit controls, blocked by remote lockdown 4516 | -7/Garrison | Triggered checkpoint 4516 | -7/Garrison | Triggered checkpoint 4619 | -7/Garrison | Triggered checkpoint 4637 | -7/Garrison | Heavy support dispatched to Factory 4696 | -7/Garrison | Discovered new exit (range 14) 4698 | -7/Garrison | Destroyed 9 combat bots 4747 | -7/Garrison | Phase Generator disabled 5101 | -7/Garrison | Garrison Relay disabled 5140 | -7/Garrison | Discovered new exit (range 10) 5155 | -7/Garrison | Entered Factory 5155 | -6/Factory | Evolved 2 slots: Utility x1, Weapon x1 5157 | -6/Factory | System corruption reached 10% 5347 | -6/Factory | Garrison activated, responded to threat 5572 | -6/Factory | Spotted B-75 Beast 5662 | -6/Factory | Identified exit to Garrison 5662 | -6/Factory | Entered Garrison 5691 | -6/Garrison | Lost 4 parts (1p2u1w) 5694 | -6/Garrison | Discovered new exit (range 51) 5694 | -6/Garrison | Discovered new exit (range 43) 5694 | -6/Garrison | Discovered new exit (range 81) 5724 | -6/Garrison | Triggered checkpoint 5838 | -6/Garrison | Rescued a captive Derelict 5885 | -6/Garrison | Spotted B-75 Beast 5886 | -6/Garrison | Triggered checkpoint 5898 | -6/Garrison | Triggered checkpoint 5916 | -6/Garrison | Destroyed B-75 Beast 5944 | -6/Garrison | Lost 4 parts (1p2n1u) 5964 | -6/Garrison | Core integrity fell below 50% 6032 | -6/Garrison | Lost 4 parts (1p1n2u) 6041 | -6/Garrison | Core integrity fell below 20% 6202 | -6/Garrison | Build established: Mutant 6218 | -6/Garrison | Spotted B-75 Beast 6236 | -6/Garrison | Found Fusion Bomb Launcher 6334 | -6/Garrison | Entered Factory 6846 | -6/Factory | Destroyed by Y-54 Guardian with Gatling Laser Last Messages --------------- 06739_ Connecting with Repair Station... 06739_ Current location identified: Factory 06739_ ALERT: Suspicious activity at Repair Station F006. Dispatching Investigation squad. 06764_ System corrupted: Energy discharge (-74). 06789_ System corrupted: Heat flow error (+173). 06808_ System corrupted: Heat flow error (+100). 06818_ Connecting with Terminal... 06818_ ALERT: Suspicious activity at Terminal F015. Dispatching Investigation squad. 06823_ Dropped Particle Reactor. 06823_ Acquired Particle Reactor. 06831_ System corrupted: Energy discharge (-78). 06834_ ALERT: Rogue bot located, Programmers report to Factory Zone 2J. 06834_ Slammed into Y-54 Guardian. 06835_ Dropped Particle Reactor. 06836_ Rigged Particle Reactor with PSU Rigger. 06841_ Rigged Particle Reactor explodes. 06841_ Neutrino Reactor explodes. 06846_ Slammed into Y-54 Guardian. Map ----- +----------------------------------------------------+ | ????????????????????????# "" "" #???????????? | | ????????????????????????# ] #???????????? | | ????????????????????????# #???????????? | | ????????????????????????#! """ """ #???????????? | | ????????#########???????# """ """ #???????????? | | ????????# #??????# """ """ #???????????? | | ????????# ! ###????# #???????????? | | ????????# + +????# / #???????????? | | ????????# # #????# ! #???????????? | | ????????# # ############+############?????? | | ????????# # #?????? | | ????????# # #?????? | | ????????# ! # #?????? | | ????????# + #???### | | ????????# # #####T | | ????????# # | | ????????# + | | ????????# ##############+### """ """ " | | ????????# ## """ # """ """ " | | ????????# ## ""T"" """ """ # """ """ " | | ????????# ## "" "" """ """ # """ """ " | | ????????# ! ## """ """ # | | ????????# ?# # """ """ """ " | | ????????#########?# !! """ # """ """ """ " | | ??????????????????# [ """ # """ """ """ " | | ??????????????????# @ [ """ # """ """ """ " | | ??????????????????# = Y # | | ??????????????????# # | | ??????????????????### # #########+#+########## | | ????????????????????#########??# #? | | ???????????????????????????????# #? | | ???????????????????????????????# #? | | ???????????????????????????????# #? | | ???????????????????????????????# #? | | ???????????????????????????????# #? | | ???????????????????????????????# #? | | ???????????????????????????????# ! * #? | | ???????????????????????????????# #? | | ???????????????????????????????##################? | | ?????????????????????????????????????????# = ? | | ?????????????????????????????????????????# ! ? | | ?????????????????????????????????????????# | | ?????????????????????????????????????????# | | ?????????????????????????????????????????# | | ?????????????????????????????????????????# | | ?????????????????????????????????????????# | | ?????????????????????????????????????????# ? | | ?????????????????????????????????????????# ? | | ?????????????????????????????????????????#######?? | | ?????????????????????????????????????????????????? | +----------------------------------------------------+ Best States ------------- Heat Dissipation 62 Energy Generation 23 Energy Capacity 690 Matter Stores 300 Matter Capacity 300 Sight Range 16 Robot Scan Range 16 Terrain Scan Range 16 Terrain Scan Density 85 ECM Strength 1 Additional Mass Support 9 Corruption Block 20 Armor Coverage 1200 Resistance: KI 30 Resistance: TH 10 Resistance: EX 25 Resistance: EM 25 Evasion (%) 64 Recoil Reduction 4 Offensive Hacking 10 Item Schematics ----------------- None Robot Schematics ------------------ None Fabricated ------------ Nothing Alien Tech Used ----------------- None Achievements -------------- None Challenges ------------ None Game ------ Seed CatalystSegregatorActivator Manual? 0 Play Time 00:52:35 Cumulative 954.4 hours Start 2024.10.01 @ 13:29:04 End 2024.10.01 @ 14:24:01 Sessions 1 Manual Loads 0 Difficulty Rogue Special Mode None Game No. 1167 Rogue 887 Adventurer 124 Explorer 156 Win Type - Total 41 Types 28/0/8/3/1/0/0/1/0 Lore% 83 Gallery% 90 Achievement% 78 Wizard Run 0 Options --------- Layout 0 ASCII 0 Keyboard 1 Movement Numpad Keybinds 0 Fullscreen 2 Font 18/X11 Map View 76x50 Zoom Use 0% Tactical HUD 1 Map Filters NONE Filters NONE Steam 1 RUN: 8fb2679e-014e-4060-969c-96f4adb1cd70